fUSD/lending_fUSD_20250606
["ID","MTS","AMOUNT","RATE_DAILY","PERIOD"]
[364755044,1749229869441,-1194.84,0.00028054,2]
[364755045,1749229869451,-2062.89,0.00028054,5]
[364755046,1749229869461,-557.64,0.00028054,5]
[364755047,1749229869471,-1788.1,0.00028054,5]
[364755048,1749229869480,-480.0,0.00028054,5]
[364755049,1749229869489,-1072.25,0.00028054,5]
[364755050,1749229869499,-480.0,0.00028054,5]
[364755051,1749229869508,-3928.65,0.00028054,5]
[364755052,1749229869518,-13781.59,0.00028054,5]
[364755053,1749229869527,-480.0,0.00028054,5]
[364755054,1749229869539,-480.0,0.00028054,5]
[364755055,1749229869549,-480.0,0.00028054,5]
[364755056,1749229869560,-3569.21,0.00028054,5]
[364755057,1749229869571,-2660.61,0.00028054,5]
[364755058,1749229869582,-480.0,0.00028054,5]
[364755059,1749229869596,-480.0,0.00028054,5]
[364755060,1749229869608,-1139.74,0.00028054,5]
[364755061,1749229869620,-480.0,0.00028054,5]
[364755062,1749229869629,-151.0,0.00028054,7]
[364755063,1749229869637,-827.81,0.00028054,5]
[364755064,1749229869647,-480.0,0.00028054,5]
[364755065,1749229869656,-480.0,0.00028054,5]
[364755066,1749229869666,-480.0,0.00028054,5]
[364755067,1749229869674,-1869.68,0.00028054,5]
[364755068,1749229869684,-5122.75,0.00028054,5]
[364755069,1749229869693,-151.0,0.00028054,7]
[364755070,1749229869702,-480.0,0.00028054,5]
[364755071,1749229869712,-1027.17,0.00028054,5]
[364755072,1749229869721,-3640.47,0.00028054,5]
[364755073,1749229869730,-993.4,0.00028054,5]
[364755074,1749229869740,-1731.35,0.00028054,5]
[364755075,1749229869751,-2864.55,0.00028054,5]
[364755076,1749229869761,-946.49,0.00028054,5]
[364755077,1749229869770,-480.0,0.00028054,5]
[364755078,1749229869780,-480.0,0.00028054,5]
[364755079,1749229869789,-988.86,0.00028054,5]
[364755080,1749229869799,-480.0,0.00028054,5]
[364755081,1749229869808,-576.53,0.00028054,5]
[364755082,1749229869818,-1518.37,0.00028054,5]
[364755083,1749229869827,-1165.4,0.00028054,5]
[364755084,1749229869836,-516.9,0.00028054,5]
[364755085,1749229869845,-1631.49,0.00028054,5]
[364755086,1749229869854,-502.37,0.00028054,5]
[364755087,1749229869863,-818.38,0.00028054,5]
[364755088,1749229869873,-480.0,0.00028054,5]
[364755089,1749229869882,-480.0,0.00028054,5]
[364755090,1749229869891,-898.12,0.00028054,5]
[364755091,1749229869901,-480.0,0.00028054,5]
[364755092,1749229869910,-480.0,0.00028054,5]
[364755093,1749229869920,-544.71,0.00028054,5]
[364755094,1749229869929,-484.48,0.00028054,5]
[364755095,1749229869939,-575.57,0.00028054,5]
[364755096,1749229869950,-480.0,0.00028054,5]
[364755097,1749229869960,-1270.81,0.00028054,5]
[364755098,1749229869970,-1082.09,0.00028054,5]
[364755099,1749229869979,-5019.69,0.00028054,5]
[364755100,1749229869991,-347.566727,0.00028054,7]
[364755101,1749229870002,-480.0,0.00028054,5]
[364755102,1749229870012,-642.47,0.00028054,5]
[364755103,1749229870024,-347.566727,0.00028054,7]
[364755104,1749229870034,-480.0,0.00028054,5]
[364755105,1749229870045,-659.85,0.00028054,5]
[364755106,1749229870056,-706.87,0.00028054,5]
[364755107,1749229870065,-1411.91,0.00028054,5]
[364755108,1749229870075,-1928.36,0.00028054,5]
[364755109,1749229870085,-2180.66,0.00028054,5]
[364755110,1749229870095,-480.0,0.00028054,5]
[364755111,1749229870107,-702.23,0.00028054,5]
[364755112,1749229870117,-480.0,0.00028054,5]
[364755113,1749229870127,-696.68,0.00028054,5]
[364755114,1749229870137,-1531.65,0.00028054,5]
[364755115,1749229870148,-1808.13,0.00028054,5]
[364755116,1749229870160,-480.0,0.00028054,5]
[364755117,1749229870170,-151.0,0.00028054,7]
[364755118,1749229870179,-480.0,0.00028054,5]
[364755119,1749229870189,-480.0,0.00028054,5]
[364755120,1749229870199,-10000.0,0.00028054,7]
[364755121,1749229870209,-1978.88,0.00028054,5]
[364755122,1749229870219,-480.0,0.00028054,5]
[364755123,1749229870230,-2908.51,0.00028054,5]
[364755124,1749229870240,-669.35,0.00028054,5]
[364755125,1749229870252,-480.0,0.00028054,5]
[364755126,1749229870262,-1262.05,0.00028054,5]
[364755127,1749229870271,-10000.0,0.00028054,7]
[364755128,1749229870281,-480.0,0.00028054,5]
[364755129,1749229870290,-1585.44,0.00028054,5]
[364755130,1749229870300,-480.0,0.00028054,5]
[364755131,1749229870309,-863.16,0.00028054,5]
[364755132,1749229870319,-716.92,0.00028054,5]
[364755133,1749229870328,-480.0,0.00028054,5]
[364755134,1749229870338,-480.0,0.00028054,5]
[364755135,1749229870347,-480.0,0.00028054,5]
[364755136,1749229870357,-490.14,0.00028054,5]
[364755137,1749229870367,-10266.6,0.00028054,5]
[364755138,1749229870377,-1988.94,0.00028054,5]
[364755139,1749229870386,-2790.95,0.00028054,5]
[364755140,1749229870397,-562.55,0.00028054,5]
[364755141,1749229870407,-480.0,0.00028054,5]
[364755142,1749229870417,-480.0,0.00028054,5]
[364755143,1749229870428,-151.0,0.00028054,7]
[364755144,1749229870437,-480.0,0.00028054,5]
[364755145,1749229870447,-518.16,0.00028054,5]
[364755146,1749229870456,-620.01,0.00028054,5]
[364755147,1749229870466,-576.54,0.00028054,5]
[364755148,1749229870475,-496.01,0.00028054,5]
[364755149,1749229870485,-480.0,0.00028054,5]
[364755150,1749229870494,-480.0,0.00028054,5]
[364755151,1749229870505,-480.0,0.00028054,5]
[364755152,1749229870514,-3901.93,0.00028054,5]
[364755153,1749229870524,-480.0,0.00028054,5]
[364755154,1749229870533,-1302.74,0.00028054,5]
[364755155,1749229870543,-480.0,0.00028054,5]
[364755156,1749229870553,-14757.67,0.00028054,5]
[364755157,1749229870563,-2148.25,0.00028054,5]
[364755158,1749229870573,-9779.61,0.00028054,5]
[364755159,1749229870583,-480.0,0.00028054,5]
[364755160,1749229870592,-21008.66,0.00028054,5]
[364755161,1749229870602,-673.26,0.00028054,5]
[364755162,1749229870615,-480.0,0.00028054,5]
[364755163,1749229870624,-480.0,0.00028054,5]
[364755164,1749229870634,-889.91,0.00028054,5]
[364755165,1749229870644,-2708.81,0.00028054,5]
[364755166,1749229870654,-776.83,0.00028054,5]
[364755167,1749229870665,-151.0,0.00028054,7]
[364755168,1749229870675,-1377.28,0.00028054,5]
[364755169,1749229870684,-585.43,0.00028054,5]
[364755170,1749229870695,-480.0,0.00028054,5]
[364755171,1749229870705,-151.0,0.00028054,7]
[364755172,1749229870715,-682.39,0.00028054,5]
[364755173,1749229870724,-2005.29,0.00028054,5]
[364755174,1749229870734,-4252.69,0.00028054,5]
[364755175,1749229870745,-2178.41,0.00028054,5]
[364755176,1749229870755,-848.79,0.00028054,5]
[364755177,1749229870764,-1974.61,0.00028054,5]
[364755178,1749229870774,-827.75,0.00028054,5]
[364755179,1749229870784,-480.0,0.00028054,5]
[364755180,1749229870794,-480.0,0.00028054,5]
[364755181,1749229870804,-480.0,0.00028054,2]
[364755182,1749229870813,-2003.46,0.00028054,5]
[364755183,1749229870823,-637.64,0.00028054,5]
[364755184,1749229870833,-1355.4,0.00028054,5]
[364755185,1749229870843,-330.15579232,0.00028054,5]
[364755186,1749229870853,-480.0,0.00028054,5]
[364755187,1749229870863,-480.0,0.00028054,5]
[364755188,1749229870872,-480.0,0.00028054,5]
[364755189,1749229870883,-480.0,0.00028054,2]
[364755190,1749229870892,-1289.4,0.00028054,5]
[364755191,1749229870902,-347.392354,0.00028054,7]
[364755192,1749229870974,-841.89,0.00028054,5]
[364755193,1749229870984,-819.47,0.00028054,5]
[364755194,1749229870994,-347.392354,0.00028054,7]
[364755195,1749229871003,-1582.7,0.00028054,5]
[364755196,1749229871013,-849.03,0.00028054,5]
[364755197,1749229871023,-739.93,0.00028054,5]
[364755198,1749229871032,-151.0,0.00028054,7]
[364755199,1749229871041,-787.91,0.00028054,5]
[364755200,1749229871051,-692.16,0.00028054,5]
[364755201,1749229871060,-1648.73,0.00028054,5]
[364755202,1749229871070,-754.23,0.00028054,5]
[364755203,1749229871079,-580.44,0.00028054,5]
[364755204,1749229871087,-1093.91,0.00028054,5]
[364755205,1749229871096,-151.0,0.00028054,7]
[364755206,1749229871105,-480.0,0.00028054,5]
[364755207,1749229871114,-645.62865551,0.00028055,5]
[364755208,1749229871124,-429.0,0.00028055,5]
[364755209,1749229871133,-428.0,0.00028055,2]
[364755210,1749229871143,-2022.0,0.00028055,5]
[364755211,1749229871152,-705.0,0.00028055,5]
[364755212,1749229871162,-488.0,0.00028055,5]
[364755213,1749229871171,-161.74902463,0.00028077,2]
[364755214,1749229871181,-429.0,0.00028082,5]
[364755215,1749229871190,-428.0,0.00028082,2]
[364755216,1749229871200,-2022.0,0.00028082,5]
[364755217,1749229871211,-705.0,0.00028082,5]
[364755218,1749229871219,-488.0,0.00028082,5]
[364755219,1749229871229,-834.15,0.00028089,2]
[364755220,1749229871238,-429.0,0.0002811,5]
[364755221,1749229871247,-428.0,0.0002811,2]
[364755222,1749229871257,-2022.0,0.0002811,5]
[364755223,1749229871266,-705.0,0.0002811,5]
[364755224,1749229871276,-488.0,0.0002811,5]
[364755225,1749229871285,-500.0,0.00028121,5]
[364755226,1749229871294,-1000.0,0.00028121,5]
[364755227,1749229871303,-1000.0,0.00028121,5]
[364755228,1749229871313,-1000.0,0.00028121,5]
[364755229,1749229871323,-506.86388459,0.00028121,5]
[364755230,1749229871332,-1000.0,0.00028121,5]
[364755231,1749229871341,-769.88644533,0.00028121,5]
[364755232,1749229871350,-150.0,0.0002813,2]
[364755233,1749229871359,-429.0,0.00028137,5]
[364755234,1749229871369,-428.0,0.00028137,2]
[364755235,1749229871379,-2022.0,0.00028137,5]
[364755236,1749229871388,-705.0,0.00028137,5]
[364755237,1749229871398,-488.0,0.00028137,5]
[364755238,1749229871407,-159.20198,0.0002816,2]
[364755239,1749229871418,-151.0,0.00028164,7]
[364755240,1749229871427,-151.0,0.00028164,7]
[364755241,1749229871436,-347.392354,0.00028164,7]
[364755242,1749229871447,-347.392354,0.00028164,7]
[364755243,1749229871457,-151.0,0.00028164,7]
[364755244,1749229871467,-151.0,0.00028164,7]
[364755245,1749229871477,-429.0,0.00028164,5]
[364755246,1749229871486,-428.0,0.00028164,2]
[364755247,1749229871495,-2022.0,0.00028164,5]
[364755248,1749229871505,-705.0,0.00028164,5]
[364755249,1749229871514,-488.0,0.00028164,5]
[364755250,1749229871523,-1614.10259472,0.00028176,18]
[364755251,1749229871533,-207.4,0.00028182,2]
[364755252,1749229871543,-151.0,0.00028182,2]
[364755253,1749229871552,-1957.856,0.00028182,2]
[364755254,1749229871562,-800.0,0.00028182,2]
[364755255,1749229871573,-800.0,0.00028182,2]
[364755256,1749229871582,-800.0,0.00028182,2]
[364755257,1749229871591,-800.0,0.00028182,2]
[364755258,1749229871600,-1000.0,0.00028182,2]
[364755259,1749229871613,-800.0,0.00028182,2]
[364755260,1749229871623,-151.0,0.00028182,2]
[364755261,1749229871632,-800.0,0.00028182,2]
[364755262,1749229871642,-800.0,0.00028182,2]
[364755263,1749229871654,-800.0,0.00028182,2]
[364755264,1749229871663,-594.03643909,0.00028182,2]
[364755265,1749229871673,-668.65185757,0.00028182,2]
[364755266,1749229871682,-151.0,0.00028182,2]
[364755267,1749229871694,-151.0,0.00028182,2]
[364755268,1749229871704,-151.0,0.00028182,2]
[364755269,1749229871713,-151.0,0.00028182,2]
[364755270,1749229871722,-151.0,0.00028182,2]
[364755271,1749229871731,-151.0,0.00028182,2]
[364755272,1749229871742,-151.0,0.00028182,2]
[364755273,1749229871752,-500.0,0.00028182,2]
[364755274,1749229871761,-500.0,0.00028182,2]
[364755275,1749229871770,-500.0,0.00028182,2]
[364755276,1749229871780,-500.0,0.00028182,2]
[364755277,1749229871789,-500.0,0.00028182,2]
[364755278,1749229871798,-500.0,0.00028182,2]
[364755279,1749229871807,-300.0,0.00028182,2]
[364755280,1749229871816,-500.0,0.00028182,2]
[364755281,1749229871826,-500.0,0.00028182,2]
[364755282,1749229871835,-300.0,0.00028182,2]
[364755283,1749229871843,-500.0,0.00028182,2]
[364755284,1749229871853,-500.0,0.00028182,2]
[364755285,1749229871862,-500.0,0.00028182,2]
[364755286,1749229871871,-500.0,0.00028182,2]
[364755287,1749229871881,-300.0,0.00028182,2]
[364755288,1749229871890,-500.0,0.00028182,2]
[364755289,1749229871899,-300.0,0.00028182,2]
[364755290,1749229871908,-500.0,0.00028182,2]
[364755291,1749229871919,-300.0,0.00028182,2]
[364755292,1749229871928,-500.0,0.00028182,2]
[364755293,1749229871937,-300.0,0.00028182,2]
[364755294,1749229871946,-500.0,0.00028182,2]
[364755295,1749229871955,-300.0,0.00028182,2]
[364755296,1749229871964,-500.0,0.00028182,2]
[364755297,1749229871973,-300.0,0.00028182,2]
[364755298,1749229871982,-500.0,0.00028182,2]
[364755299,1749229871991,-300.0,0.00028182,2]
[364755300,1749229872001,-500.0,0.00028182,2]
[364755301,1749229872010,-500.0,0.00028182,2]
[364755302,1749229872020,-300.0,0.00028182,2]
[364755303,1749229872029,-300.0,0.00028182,2]
[364755304,1749229872038,-300.0,0.00028182,2]
[364755305,1749229872047,-300.0,0.00028182,2]
[364755306,1749229872057,-300.0,0.00028182,2]
[364755307,1749229872066,-300.0,0.00028182,2]
[364755308,1749229872075,-300.0,0.00028182,2]
[364755309,1749229872084,-151.0,0.00028182,2]
[364755310,1749229872094,-1408.86277605,0.00028184,2]
[364755311,1749229872103,-152.0,0.00028191,3]
[364755312,1749229872113,-429.0,0.00028192,5]
[364755313,1749229872122,-428.0,0.00028192,2]
[364755314,1749229872132,-2022.0,0.00028192,5]
[364755315,1749229872141,-705.0,0.00028192,5]
[364755316,1749229872151,-488.0,0.00028192,5]
[364755317,1749229872161,-161.74902463,0.00028201,2]
[364755318,1749229872174,-521.92494463,0.00028218,5]
[364755319,1749229872183,-151.0,0.00028218,7]
[364755320,1749229872193,-151.0,0.00028218,7]
[364755321,1749229872202,-176.665353,0.00028218,7]
[364755322,1749229872212,-1957.55,0.00028218,5]
[364755323,1749229872221,-1959.11,0.00028218,5]
[364755324,1749229872231,-2252.79,0.00028218,5]
[364755325,1749229872240,-473.147601,0.00028218,7]
[364755326,1749229872250,-2706.51,0.00028218,5]
[364755327,1749229872260,-473.147601,0.00028218,7]
[364755328,1749229872270,-297.740512,0.00028218,7]
[364755329,1749229872280,-297.740512,0.00028218,7]
[364755330,1749229872290,-151.0,0.00028218,7]
[364755331,1749229872300,-164.396568,0.00028219,7]
[364755332,1749229872310,-164.396568,0.00028219,7]
[364755333,1749229872319,-151.0,0.00028219,7]
[364755334,1749229872328,-158.08647,0.00028219,7]
[364755335,1749229872338,-158.08647,0.00028219,7]
[364755336,1749229872347,-151.0,0.00028219,7]
[364755337,1749229872356,-151.0,0.00028219,7]
[364755338,1749229872366,-151.0,0.00028219,7]
[364755339,1749229872375,-1234.361279,0.00028219,7]
[364755340,1749229872385,-151.0,0.00028219,7]
[364755341,1749229872395,-1234.361279,0.00028219,7]
[364755342,1749229872405,-151.0,0.00028219,7]
[364755343,1749229872418,-151.0,0.00028219,7]
[364755344,1749229872428,-151.0,0.00028219,7]
[364755345,1749229872438,-151.0,0.00028219,7]
[364755346,1749229872448,-151.0,0.00028219,7]
[364755347,1749229872457,-151.0,0.00028219,7]
[364755348,1749229872467,-151.0,0.00028219,7]
[364755349,1749229872477,-154.103676,0.00028219,7]
[364755350,1749229872486,-151.0,0.00028219,7]
[364755351,1749229872496,-151.0,0.00028219,7]
[364755352,1749229872506,-151.0,0.00028219,7]
[364755353,1749229872515,-151.0,0.00028219,7]
[364755354,1749229872525,-151.0,0.00028219,7]
[364755355,1749229872535,-151.0,0.00028219,7]
[364755356,1749229872544,-151.0,0.00028219,7]
[364755357,1749229872554,-151.0,0.00028219,7]
[364755358,1749229872563,-151.0,0.00028219,7]
[364755359,1749229872573,-206.869212,0.00028219,7]
[364755360,1749229872583,-178.504092,0.00028219,7]
[364755361,1749229872592,-151.46824,0.00028219,7]
[364755362,1749229872602,-151.0,0.00028219,7]
[364755363,1749229872613,-151.0,0.00028219,7]
[364755364,1749229872623,-151.0,0.00028219,7]
[364755365,1749229872632,-222.968153,0.00028219,7]
[364755366,1749229872641,-276.091903,0.00028219,7]
[364755367,1749229872650,-276.091903,0.00028219,7]
[364755368,1749229872660,-151.0,0.00028219,7]
[364755369,1749229872672,-151.0,0.00028219,7]
[364755370,1749229872681,-199.815143,0.00028219,7]
[364755371,1749229872692,-199.815143,0.00028219,7]
[364755372,1749229872702,-151.0,0.00028219,7]
[364755373,1749229872711,-151.0,0.00028219,7]
[364755374,1749229872721,-151.0,0.00028219,7]
[364755375,1749229872730,-151.0,0.00028219,7]
[364755376,1749229872739,-250.071268,0.00028219,7]
[364755377,1749229872749,-250.071268,0.00028219,7]
[364755378,1749229872758,-1053.821183,0.00028219,7]
[364755379,1749229872767,-1053.821183,0.00028219,7]
[364755380,1749229872778,-178.005479,0.00028219,7]
[364755381,1749229872787,-813.484633,0.00028219,7]
[364755382,1749229872796,-383.621558,0.00028219,7]
[364755383,1749229872806,-813.484633,0.00028219,7]
[364755384,1749229872815,-383.621558,0.00028219,7]
[364755385,1749229872825,-151.0,0.00028219,7]
[364755386,1749229872834,-461.872158,0.00028219,7]
[364755387,1749229872844,-461.872158,0.00028219,7]
[364755388,1749229872853,-522.46857005,0.00028219,5]
[364755389,1749229872863,-480.0,0.00028219,5]
[364755390,1749229872872,-480.0,0.00028219,5]
[364755391,1749229872881,-1010.98,0.00028219,5]
[364755392,1749229872892,-446.875126,0.00028219,7]
[364755393,1749229872902,-480.0,0.00028219,5]
[364755394,1749229872912,-446.875126,0.00028219,7]
[364755395,1749229872923,-151.0,0.00028219,7]
[364755396,1749229872932,-151.0,0.00028219,7]
[364755397,1749229872941,-480.0,0.00028219,5]
[364755398,1749229872953,-666.83,0.00028219,5]
[364755399,1749229872964,-151.0,0.00028219,7]
[364755400,1749229872974,-1122.19802,0.00028219,7]
[364755401,1749229872983,-151.0,0.00028219,7]
[364755402,1749229872994,-1122.19802,0.00028219,7]
[364755403,1749229873004,-151.0,0.00028219,7]
[364755404,1749229873014,-151.4469,0.00028219,7]
[364755405,1749229873024,-480.0,0.00028219,5]
[364755406,1749229873034,-480.0,0.00028219,5]
[364755407,1749229873044,-480.0,0.00028219,5]
[364755408,1749229873055,-480.0,0.00028219,5]
[364755409,1749229873066,-151.0,0.00028219,7]
[364755410,1749229873076,-480.0,0.00028219,5]
[364755411,1749229873086,-480.0,0.00028219,5]
[364755412,1749229873095,-480.0,0.00028219,5]
[364755413,1749229873106,-166.15307668,0.00028219,5]
[364755414,1749229873115,-1011.49,0.00028219,5]
[364755415,1749229873126,-240.486893,0.00028219,7]
[364755416,1749229873135,-480.0,0.00028219,5]
[364755417,1749229873144,-151.0,0.00028219,7]
[364755418,1749229873154,-240.486893,0.00028219,7]
[364755419,1749229873165,-151.0,0.00028219,7]
[364755420,1749229873176,-558.43,0.00028219,5]
[364755421,1749229873186,-610.13,0.00028219,5]
[364755422,1749229873195,-324.96672663,0.00028219,5]
[364755423,1749229873205,-243.8511121,0.00028219,5]
[364755424,1749229873215,-1715.86,0.00028219,5]
[364755425,1749229873224,-807.41,0.00028219,5]
[364755426,1749229873233,-151.0,0.00028219,7]
[364755427,1749229873243,-340.30833747,0.00028219,5]
[364755428,1749229873253,-602.58,0.00028219,5]
[364755429,1749229873262,-480.0,0.00028219,5]
[364755430,1749229873272,-369.817025,0.00028219,7]
[364755431,1749229873282,-369.817025,0.00028219,7]
[364755432,1749229873292,-480.0,0.00028219,5]
[364755433,1749229873302,-480.0,0.00028219,5]
[364755434,1749229873312,-480.0,0.00028219,5]
[364755435,1749229873322,-151.0,0.00028219,7]
[364755436,1749229873332,-176.947066,0.00028219,7]
[364755437,1749229873342,-480.0,0.00028219,5]
[364755438,1749229873352,-550.31,0.00028219,5]
[364755439,1749229873362,-480.0,0.00028219,5]
[364755440,1749229873372,-176.947066,0.00028219,7]
[364755441,1749229873382,-622.13,0.00028219,5]
[364755442,1749229873391,-480.0,0.00028219,5]
[364755443,1749229873401,-599.55,0.00028219,5]
[364755444,1749229873411,-318.82439043,0.00028219,5]
[364755445,1749229873422,-480.0,0.00028219,5]
[364755446,1749229873431,-480.0,0.00028219,5]
[364755447,1749229873442,-480.0,0.00028219,5]
[364755448,1749229873452,-490.64,0.00028219,5]
[364755449,1749229873461,-480.0,0.00028219,5]
[364755450,1749229873471,-203.189938,0.00028219,7]
[364755451,1749229873482,-203.189938,0.00028219,7]
[364755452,1749229873491,-480.0,0.00028219,5]
[364755453,1749229873501,-480.0,0.00028219,5]
[364755454,1749229873512,-2384.26,0.00028219,5]
[364755455,1749229873524,-151.0,0.00028219,7]
[364755456,1749229873533,-480.0,0.00028219,5]
[364755457,1749229873544,-181.65256559,0.00028219,5]
[364755458,1749229873553,-653.07,0.00028219,5]
[364755459,1749229873564,-480.0,0.00028219,5]
[364755460,1749229873575,-757.83,0.00028219,5]
[364755461,1749229873587,-480.0,0.00028219,5]
[364755462,1749229873596,-1601.61,0.00028219,5]
[364755463,1749229873606,-589.54,0.00028219,5]
[364755464,1749229873620,-480.0,0.00028219,5]
[364755465,1749229873630,-1346.978979,0.00028219,7]
[364755466,1749229873640,-151.0,0.00028219,7]
[364755467,1749229873650,-229.42916,0.00028219,7]
[364755468,1749229873661,-1346.978979,0.00028219,7]
[364755469,1749229873672,-480.0,0.00028219,5]
[364755470,1749229873682,-229.42916,0.00028219,7]
[364755471,1749229873696,-480.0,0.00028219,5]
[364755472,1749229873706,-714.86,0.00028219,5]
[364755473,1749229873715,-480.0,0.00028219,5]
[364755474,1749229873725,-777.0,0.00028219,5]
[364755475,1749229873734,-480.0,0.00028219,5]
[364755476,1749229873744,-1293.92,0.00028219,5]
[364755477,1749229873754,-480.0,0.00028219,5]
[364755478,1749229873764,-480.0,0.00028219,5]
[364755479,1749229873773,-952.4,0.00028219,5]
[364755480,1749229873783,-692.87,0.00028219,5]
[364755481,1749229873792,-1552.44,0.00028219,5]
[364755482,1749229873802,-824.69,0.00028219,5]
[364755483,1749229873811,-878.5,0.00028219,5]
[364755484,1749229873821,-480.0,0.00028219,5]
[364755485,1749229873831,-480.0,0.00028219,5]
[364755486,1749229873841,-1820.97,0.00028219,5]
[364755487,1749229873850,-1445.92,0.00028219,5]
[364755488,1749229873860,-480.0,0.00028219,5]
[364755489,1749229873869,-686.33,0.00028219,5]
[364755490,1749229873879,-1256.45,0.00028219,5]
[364755491,1749229873888,-1202.277604,0.00028219,7]
[364755492,1749229873898,-1202.277604,0.00028219,7]
[364755493,1749229873907,-1113.88,0.00028219,5]
[364755494,1749229873918,-480.0,0.00028219,5]
[364755495,1749229873928,-480.0,0.00028219,5]
[364755496,1749229873938,-876.31,0.00028219,5]
[364755497,1749229873949,-872.88,0.00028219,5]
[364755498,1749229873960,-565.93,0.00028219,5]
[364755499,1749229873970,-480.0,0.00028219,5]
[364755500,1749229873979,-757.79,0.00028219,5]
[364755501,1749229873989,-767.93,0.00028219,5]
[364755502,1749229873998,-379.208433,0.00028219,7]
[364755503,1749229874008,-379.208433,0.00028219,7]
[364755504,1749229874018,-480.0,0.00028219,5]
[364755505,1749229874027,-1120.8,0.00028219,5]
[364755506,1749229874037,-480.0,0.00028219,5]
[364755507,1749229874047,-695.31,0.00028219,5]
[364755508,1749229874056,-673.95,0.00028219,5]
[364755509,1749229874065,-480.0,0.00028219,5]
[364755510,1749229874075,-364.24957182,0.00028219,5]
[364755511,1749229874084,-931.01,0.00028219,5]
[364755512,1749229874093,-218.48555047,0.00028219,5]
[364755513,1749229874103,-480.0,0.00028219,5]
[364755514,1749229874113,-480.0,0.00028219,5]
[364755515,1749229874123,-480.0,0.00028219,5]
[364755516,1749229874133,-480.0,0.00028219,5]
[364755517,1749229874142,-609.77,0.00028219,5]
[364755518,1749229874152,-480.0,0.00028219,5]
[364755519,1749229874161,-480.0,0.00028219,5]
[364755520,1749229874171,-1281.91,0.00028219,5]
[364755521,1749229874181,-480.0,0.00028219,5]
[364755522,1749229874191,-816.61,0.00028219,5]
[364755523,1749229874201,-764.02,0.00028219,5]
[364755524,1749229874211,-1371.81,0.00028219,5]
[364755525,1749229874221,-1580.65,0.00028219,5]
[364755526,1749229874231,-480.0,0.00028219,5]
[364755527,1749229874240,-583.36,0.00028219,5]
[364755528,1749229874250,-533.29,0.00028219,5]
[364755529,1749229874260,-480.0,0.00028219,5]
[364755530,1749229874270,-979.62,0.00028219,5]
[364755531,1749229874280,-480.0,0.00028219,5]
[364755532,1749229874291,-480.0,0.00028219,5]
[364755533,1749229874302,-480.0,0.00028219,5]
[364755534,1749229874312,-680.63,0.00028219,5]
[364755535,1749229874322,-610.2,0.00028219,5]
[364755536,1749229874331,-480.0,0.00028219,5]
[364755537,1749229874341,-767.55,0.00028219,5]
[364755538,1749229874351,-480.0,0.00028219,5]
[364755539,1749229874361,-480.0,0.00028219,5]
[364755540,1749229874371,-480.0,0.00028219,5]
[364755541,1749229874381,-1108.13,0.00028219,5]
[364755542,1749229874392,-1055.72,0.00028219,5]
[364755543,1749229874402,-1139.21,0.00028219,5]